bitfinex/quotes_BTCUSD_20240815
["timestamp","ask_amount","ask_price","bid_price","bid_amount"]
[1723742523004,0.09707682,59308.0,59295.0,0.38783083]
[1723742523207,0.0813,59303.0,59302.0,0.168628]
[1723742523376,0.0813,59303.0,59302.0,0.505884]
[1723742524141,0.0813,59303.0,59302.0,0.168628]
[1723742524524,0.0813,59303.0,59301.0,0.33726]
[1723742524751,0.0813,59303.0,59302.0,0.168628]
[1723742524929,0.0813,59303.0,59302.0,0.4505888]
[1723742525131,0.0813,59303.0,59302.0,0.4]
[1723742525559,0.08220861,59303.0,59302.0,0.4]
[1723742525770,0.08220861,59303.0,59302.0,0.905884]
[1723742526072,0.08220861,59303.0,59302.0,1.24314]
[1723742526280,0.00090861,59303.0,59302.0,1.41469454]
[1723742526584,0.00090861,59303.0,59302.0,1.41569454]
[1723742527036,0.00090861,59303.0,59302.0,1.41469454]
[1723742527236,0.00090861,59303.0,59302.0,1.41869454]
[1723742527578,0.00090861,59303.0,59302.0,1.42169454]
[1723742527764,0.00190861,59303.0,59302.0,1.43169454]
[1723742528334,0.00190861,59303.0,59302.0,1.76895054]
[1723742528544,0.00190861,59303.0,59302.0,1.43169454]
[1723742530487,0.00190861,59303.0,59302.0,1.76895054]
[1723742534001,0.00190861,59303.0,59302.0,1.76895054]
[1723742537123,0.00190861,59303.0,59302.0,1.79195054]
[1723742537332,0.0809108,59311.0,59310.0,0.843027]
[1723742537333,0.0009108,59311.0,59310.0,0.843027]
[1723742537536,0.0009108,59311.0,59310.0,1.01458154]
[1723742537734,0.0009108,59311.0,59310.0,1.35179254]
[1723742537936,0.0009108,59311.0,59310.0,1.75179254]
[1723742539178,0.0019108,59311.0,59310.0,1.84569254]
[1723742539870,0.0019108,59311.0,59310.0,1.84769254]
[1723742540096,0.0019108,59311.0,59310.0,1.85769984]
[1723742540661,0.0019108,59311.0,59310.0,1.88069984]
[1723742541007,0.0019108,59311.0,59310.0,1.87669984]
[1723742541209,0.0019108,59311.0,59310.0,2.22791084]
[1723742541416,0.0019108,59311.0,59310.0,2.40531084]
[1723742541617,0.0019108,59311.0,59310.0,2.50531084]
[1723742541845,0.00090971,59320.0,59319.0,1.18006]
[1723742542056,0.00090971,59320.0,59319.0,1.49861454]
[1723742542433,0.00090971,59320.0,59319.0,1.41671454]
[1723742542818,0.00090971,59320.0,59319.0,1.81671454]
[1723742543605,0.00190971,59320.0,59319.0,2.29087454]
[1723742543802,0.00190971,59320.0,59319.0,2.70993454]
[1723742544006,0.00190971,59320.0,59319.0,2.37277454]
[1723742544224,0.00190971,59320.0,59319.0,2.38277454]
[1723742544437,0.00190971,59320.0,59319.0,2.74193454]
[1723742544610,0.00190971,59320.0,59319.0,2.80585779]
[1723742544809,0.00909701,59332.0,59326.0,1.51904]
[1723742545064,0.00909701,59332.0,59326.0,2.13799454]
[1723742545210,0.00909701,59332.0,59326.0,2.53885454]
[1723742545426,0.00909701,59332.0,59326.0,2.51885454]
[1723742545631,0.00909701,59332.0,59326.0,2.569007]
[1723742545827,0.00909701,59332.0,59326.0,2.969007]
[1723742546147,0.00909701,59332.0,59326.0,2.983007]
[1723742546550,0.00909701,59332.0,59326.0,2.94881379]
[1723742546797,0.00909701,59332.0,59331.0,1.552649]
[1723742547034,0.00909701,59332.0,59331.0,1.92910354]
[1723742547610,0.00909701,59332.0,59331.0,2.34129454]
[1723742547814,0.00909701,59332.0,59331.0,2.39420354]
[1723742548581,0.00909701,59332.0,59331.0,2.41820354]
[1723742548790,0.00909701,59332.0,59331.0,2.40420354]
[1723742548950,0.00909701,59332.0,59331.0,2.77529454]
[1723742549165,0.00909701,59332.0,59331.0,2.76929454]
[1723742549320,0.00909701,59332.0,59331.0,2.75529454]
[1723742549740,0.00909701,59332.0,59331.0,2.76929454]
[1723742550141,0.00909701,59346.0,59340.0,0.16852]
[1723742550368,0.00909701,59346.0,59340.0,1.03715454]
[1723742550608,0.0752,59342.0,59340.0,1.37419454]
[1723742550941,0.0752,59342.0,59340.0,1.77419454]
[1723742551153,0.00909701,59346.0,59340.0,1.77419454]
[1723742551154,0.00909701,59346.0,59340.0,2.35903454]
[1723742551356,0.00909701,59346.0,59340.0,2.40477454]
[1723742551553,0.00909701,59346.0,59340.0,2.42477454]
[1723742551782,0.00909701,59346.0,59340.0,2.75581454]
[1723742551959,0.0754,59359.0,59356.0,1.179321]
[1723742552184,0.0754,59359.0,59356.0,1.36887554]
[1723742552362,0.0754,59359.0,59358.0,0.842345]
[1723742552363,0.0002,59359.0,59358.0,0.842345]
[1723742552497,0.0002,59359.0,59358.0,1.35083754]
[1723742552704,0.0002,59359.0,59358.0,1.42331238]
[1723742553060,0.0002,59359.0,59358.0,1.82331238]
[1723742553578,0.0002,59359.0,59358.0,2.26025038]
[1723742553807,0.251166,59359.0,59358.0,0.57155454]
[1723742554000,0.251166,59359.0,59358.0,0.47540315]
[1723742554001,0.98583,59359.0,59358.0,0.47540315]
[1723742554233,0.98583,59359.0,59358.0,0.414]
[1723742554402,1.322762,59359.0,59358.0,0.414]
[1723742556150,1.752762,59359.0,59358.0,0.2641]
[1723742556331,0.93883,59338.0,59337.0,0.4787]
[1723742556565,0.925172,59335.0,59334.0,0.51466362]
[1723742556767,0.0825,59334.0,59313.0,0.4787]
[1723742556911,0.33712,59327.0,59318.0,0.23856942]
[1723742557105,0.168554,59328.0,59324.0,0.168565]
[1723742557339,0.3371,59330.0,59325.0,0.17155454]
[1723742557542,0.3371,59330.0,59326.0,0.06701488]
[1723742557741,0.3371,59330.0,59327.0,0.17155454]
[1723742558121,0.168554,59329.0,59327.0,0.17155454]
[1723742558598,0.168554,59328.0,59327.0,0.17155454]
[1723742560076,0.168554,59328.0,59327.0,0.17742414]
[1723742560283,0.168553,59329.0,59327.0,0.17742414]
[1723742560868,0.168553,59329.0,59328.0,0.4]
[1723742561536,0.168548,59330.0,59328.0,0.4]
[1723742561752,0.337081,59333.0,59328.0,0.4]
[1723742561958,0.0825,59334.0,59329.0,0.17155454]
[1723742562164,0.16854,59333.0,59330.0,0.168548]
[1723742562376,0.0825,59334.0,59333.0,0.16854]
[1723742562580,0.17175454,59359.0,59348.0,0.168495]
[1723742562581,0.146,59355.0,59348.0,0.168495]
[1723742562783,0.51466362,59351.0,59349.0,0.0168495]
[1723742563000,0.146,59355.0,59350.0,0.168491]
[1723742563203,0.146,59355.0,59350.0,0.19057437]
[1723742563353,0.081,59355.0,59353.0,0.168481]
[1723742563571,0.081,59355.0,59350.0,0.19057437]
[1723742563572,0.249478,59355.0,59350.0,0.19057437]
[1723742563767,0.16848,59354.0,59351.0,0.2461353]
[1723742563966,0.41796,59355.0,59351.0,0.17155454]
[1723742564167,0.41796,59355.0,59348.0,0.001]
[1723742564168,0.168494,59349.0,59348.0,0.001]
[1723742564591,0.168501,59347.0,59343.0,0.168511]
[1723742564741,0.168501,59347.0,59344.0,0.17155454]
[1723742564962,0.168501,59347.0,59345.0,0.08456095]
[1723742565656,0.08577727,59354.0,59344.0,0.17155454]
[1723742565657,0.168506,59345.0,59344.0,0.17155454]
[1723742565847,0.168509,59344.0,59343.0,0.005]
[1723742566052,0.168509,59344.0,59339.0,0.4787]
[1723742566053,0.16852,59340.0,59339.0,0.65025454]
[1723742566285,0.16852,59340.0,59339.0,0.23657999]
[1723742566489,0.50556,59340.0,59339.0,0.17155454]
[1723742566626,0.168526,59338.0,59334.0,0.168536]
[1723742566819,0.168526,59338.0,59335.0,0.22211624]
[1723742567036,0.0616,59344.0,59335.0,0.22211624]
[1723742567238,0.0829,59336.0,59329.0,0.64725]
[1723742567443,0.337083,59333.0,59329.0,0.4787]
[1723742567628,0.0829,59336.0,59329.0,0.4787]
[1723742567629,0.337071,59335.0,59329.0,0.4787]
[1723742567821,0.337077,59334.0,59329.0,0.4787]
[1723742568032,0.168548,59330.0,59329.0,0.4787]
[1723742568632,0.842742,59330.0,59329.0,0.4787]
[1723742568930,0.842742,59330.0,59329.0,0.8787]
[1723742569132,0.842742,59330.0,59329.0,0.8807]
[1723742569469,0.505645,59330.0,59329.0,0.8807]
[1723742570477,0.336993,59349.0,59330.0,0.08]
[1723742570709,0.0829,59352.0,59334.0,0.17155454]
[1723742570710,0.337,59348.0,59334.0,0.17155454]
[1723742570905,0.337,59348.0,59335.0,0.11871063]
[1723742570906,0.336999,59348.0,59335.0,0.11871063]
[1723742571254,0.0829,59352.0,59351.0,0.168489]
[1723742571469,0.08380751,59357.0,59351.0,0.168489]
[1723742571619,0.08380751,59357.0,59353.0,0.168482]
[1723742571819,0.08380751,59357.0,59351.0,0.4]
[1723742572044,0.08380751,59357.0,59354.0,0.168479]
[1723742572244,0.08380751,59357.0,59356.0,0.168474]
[1723742572490,0.00090751,59357.0,59356.0,0.505423]
[1723742572783,0.00090751,59357.0,59356.0,0.842372]
[1723742572970,0.00090751,59357.0,59356.0,0.905423]
[1723742573183,0.00090751,59357.0,59356.0,1.09657418]
[1723742573387,0.00090751,59357.0,59356.0,1.43352318]
[1723742573936,0.00090751,59357.0,59356.0,1.10457418]
[1723742574951,0.00090751,59357.0,59356.0,1.44152318]
[1723742575490,0.00090751,59357.0,59356.0,1.45052318]
[1723742575687,0.00090751,59357.0,59356.0,1.84907218]
[1723742575892,0.00090751,59357.0,59356.0,1.51212318]
[1723742576491,0.00090751,59357.0,59356.0,1.84907218]
[1723742576897,0.0002,59359.0,59356.0,1.84907218]
[1723742576898,0.0002,59359.0,59358.0,0.842345]
[1723742577125,0.0002,59359.0,59358.0,1.45083754]
[1723742577592,0.0002,59359.0,59358.0,1.81077554]
[1723742577964,0.0002,59359.0,59358.0,2.21277554]
[1723742578138,0.0002,59359.0,59358.0,2.21977554]
[1723742578362,0.0002,59359.0,59358.0,2.38167218]
[1723742578567,0.00090861,59361.0,59360.0,1.323544]
[1723742578714,0.00090861,59361.0,59360.0,2.40359614]
[1723742578915,0.00090861,59361.0,59360.0,2.32843789]
[1723742579116,0.00090861,59361.0,59360.0,2.51955171]
[1723742579772,0.00090861,59361.0,59360.0,2.41929134]
[1723742579981,0.00090861,59361.0,59360.0,3.15621834]
[1723742580178,0.00090861,59361.0,59360.0,3.25647871]
[1723742580409,0.00909701,59380.0,59371.0,0.168432]
[1723742580614,0.00909701,59380.0,59371.0,1.58072265]
[1723742580843,0.00909701,59380.0,59371.0,2.58643112]
[1723742581044,0.00909701,59380.0,59371.0,2.21308991]
[1723742581469,0.00909701,59380.0,59371.0,2.20772254]
[1723742581681,0.00037112,59372.0,59371.0,2.2577992]
[1723742581881,0.00037112,59372.0,59371.0,2.6717992]
[1723742582104,0.00037112,59372.0,59371.0,2.6577992]
[1723742582308,0.00037112,59372.0,59371.0,2.60772254]
[1723742582509,0.00037112,59372.0,59371.0,2.68177341]
[1723742583246,0.00037112,59372.0,59371.0,2.63369675]
[1723742583447,0.00037112,59372.0,59371.0,2.68377341]
[1723742583647,0.00037112,59372.0,59371.0,2.69777341]
[1723742584217,0.00037112,59372.0,59371.0,2.63369675]
[1723742585130,0.00037112,59372.0,59371.0,1.77857854]
[1723742586084,0.00037112,59372.0,59371.0,2.15122254]
[1723742586506,0.00037112,59372.0,59371.0,2.23722254]
[1723742586716,0.00037112,59372.0,59371.0,1.86457854]
[1723742586923,0.00037112,59372.0,59371.0,1.87857854]
[1723742587331,0.00037112,59372.0,59371.0,1.85057854]
[1723742587530,0.00037112,59372.0,59371.0,1.87857854]
[1723742588020,0.00037112,59372.0,59371.0,1.88057854]
[1723742588162,0.00037112,59372.0,59371.0,1.92335854]
[1723742588375,0.00037112,59372.0,59371.0,1.93735854]
[1723742588572,0.00037112,59372.0,59371.0,2.27422254]
[1723742588774,0.00909701,59380.0,59378.0,1.178887]
[1723742588974,0.00909701,59380.0,59378.0,1.45044154]
[1723742589201,0.00909701,59380.0,59378.0,1.81226654]
[1723742589404,0.00909701,59380.0,59378.0,1.89306654]
[1723742589873,0.00909701,59380.0,59378.0,2.29306654]
[1723742590075,0.00909701,59380.0,59378.0,2.38684654]
[1723742590267,0.00909701,59380.0,59378.0,2.35306654]
[1723742590471,0.00909701,59380.0,59378.0,1.85044154]
[1723742590966,0.00909701,59380.0,59378.0,1.51361654]
[1723742591297,0.00909701,59380.0,59378.0,1.42761654]
[1723742591629,0.842247,59379.0,59378.0,0.428]
[1723742591830,0.842247,59379.0,59378.0,0.4]
[1723742591831,1.326566,59379.0,59378.0,0.4]
[1723742592005,1.326566,59379.0,59378.0,0.414]
[1723742592203,1.326566,59379.0,59378.0,0.428]
[1723742592407,1.326566,59379.0,59378.0,0.414]
[1723742593252,1.326566,59379.0,59378.0,0.4]
[1723742593680,1.327566,59379.0,59378.0,0.401]
[1723742594098,1.327566,59379.0,59378.0,0.4]
[1723742594297,1.326566,59379.0,59378.0,0.4]
[1723742594513,1.49912054,59379.0,59378.0,0.401]
[1723742594723,1.89112459,59379.0,59378.0,0.401]
[1723742595337,1.83593954,59379.0,59378.0,0.401]
[1723742595963,1.83593954,59379.0,59378.0,0.001]
[1723742596460,1.83593954,59379.0,59378.0,0.002]
[1723742596880,2.17275854,59379.0,59378.0,0.002]
[1723742597124,1.481687,59378.0,59377.0,0.3197]
[1723742597363,2.26162108,59378.0,59377.0,0.3197]
[1723742597745,2.09006654,59378.0,59377.0,0.3197]
[1723742597944,1.597438,59373.0,59372.0,0.4]
[1723742598172,1.86899254,59373.0,59372.0,0.4]
[1723742598350,1.360585,59373.0,59372.0,0.4]
[1723742598550,0.586879,59373.0,59372.0,0.4]
[1723742598755,0.250026,59373.0,59372.0,0.4]
[1723742598887,0.250026,59373.0,59371.0,0.000824]
[1723742598888,0.168429,59372.0,59371.0,0.000824]
[1723742599089,0.0816,59377.0,59371.0,0.000824]
[1723742599311,0.0816,59377.0,59371.0,0.23647854]
[1723742599520,0.0816,59377.0,59372.0,0.02398471]
[1723742599726,0.0011064,59379.0,59378.0,0.168412]
[1723742599916,0.0011064,59379.0,59378.0,0.505237]
[1723742600172,0.014,59378.0,59377.0,0.568414]
[1723742600586,0.014,59378.0,59377.0,1.242074]
[1723742600788,0.0011064,59379.0,59377.0,0.4]
[1723742601125,0.0051064,59379.0,59376.0,0.568416]
[1723742601465,0.0011064,59379.0,59378.0,0.168412]
[1723742602092,0.0011064,59379.0,59377.0,0.004]
[1723742602296,0.168412,59378.0,59377.0,0.004]
[1723742602643,0.586837,59378.0,59377.0,0.004]
[1723742602852,0.923662,59378.0,59377.0,0.4444]
[1723742603265,0.923662,59378.0,59377.0,0.4404]
[1723742603619,0.250012,59378.0,59377.0,0.4404]
[1723742603826,0.250012,59378.0,59377.0,0.4454]
[1723742604025,0.586837,59378.0,59377.0,0.4454]
[1723742604239,0.250012,59378.0,59377.0,0.4454]
[1723742604701,0.586837,59378.0,59377.0,0.4454]
[1723742604948,0.586837,59378.0,59377.0,0.4504]
[1723742605160,0.250012,59378.0,59377.0,0.4504]
[1723742605373,0.0011064,59379.0,59377.0,0.4504]
[1723742605598,0.0011064,59379.0,59378.0,0.38500654]
[1723742605797,0.0011064,59379.0,59378.0,0.72183154]
[1723742606005,0.0011064,59379.0,59378.0,1.45865654]
[1723742606381,0.0011064,59379.0,59378.0,1.85758154]
[1723742606993,0.0011064,59379.0,59378.0,1.86058154]
[1723742607171,0.0011064,59379.0,59378.0,1.52375654]
[1723742607376,0.00909701,59380.0,59379.0,0.505228]
[1723742607580,0.00909701,59380.0,59379.0,0.73309562]
[1723742607799,0.00909701,59380.0,59379.0,1.13309562]
[1723742608002,0.00909701,59380.0,59379.0,0.79627662]
[1723742608749,0.00909701,59380.0,59379.0,0.62786762]
[1723742609545,0.00909701,59380.0,59379.0,0.62986762]
[1723742610498,0.00909701,59380.0,59379.0,0.63286762]
[1723742611667,0.17750301,59380.0,59379.0,0.63286762]
[1723742611881,0.00909701,59380.0,59379.0,0.63286762]
[1723742612314,0.00909701,59380.0,59379.0,1.13809562]
[1723742613020,0.00909701,59380.0,59379.0,1.47491462]
[1723742613616,0.00909701,59380.0,59379.0,0.63286762]
[1723742613825,0.17750301,59380.0,59379.0,0.46131308]
[1723742613943,0.00909701,59380.0,59379.0,0.46131308]
[1723742614145,0.17750301,59380.0,59379.0,0.46131308]
[1723742614540,0.00909701,59380.0,59379.0,0.46131308]
[1723742616802,0.00909701,59380.0,59379.0,0.62972208]
[1723742617629,0.00909701,59380.0,59379.0,0.46131308]
[1723742617834,0.00909701,59380.0,59379.0,0.62972208]
[1723742618061,0.00909701,59380.0,59379.0,0.46131308]
[1723742618832,0.00909701,59380.0,59379.0,0.62972208]
[1723742619677,0.00909701,59380.0,59379.0,1.13809562]
[1723742619929,0.00909701,59380.0,59379.0,1.95673362]
[1723742620142,0.00909701,59380.0,59379.0,1.61991462]
[1723742620350,0.00909701,59380.0,59379.0,1.53961462]
[1723742621187,0.00909701,59380.0,59379.0,1.87643362]
[1723742622472,0.00909701,59380.0,59379.0,1.58993808]
[1723742623820,0.00909701,59380.0,59379.0,1.92675708]
[1723742624889,0.00909701,59380.0,59379.0,1.87643362]
[1723742625092,0.00909701,59380.0,59379.0,1.87725962]
[1723742626603,0.00909701,59380.0,59379.0,1.92758308]
[1723742627822,0.00909701,59380.0,59379.0,1.87725962]
[1723742628020,0.00909701,59380.0,59379.0,1.92758308]
[1723742628574,0.00909701,59380.0,59379.0,1.87725962]
[1723742630063,0.00909701,59380.0,59379.0,1.92761863]
[1723742630268,0.00909701,59380.0,59379.0,1.87725962]
[1723742633631,0.00909701,59380.0,59379.0,1.54044062]
[1723742636401,0.00907501,59387.0,59379.0,1.54044062]
[1723742636402,0.00907501,59387.0,59379.0,2.07722929]
[1723742636603,0.00907501,59387.0,59386.0,1.03110254]
[1723742636806,0.00907501,59387.0,59386.0,1.84326021]
[1723742637027,0.00907501,59387.0,59386.0,2.93981821]
[1723742637309,0.00907501,59387.0,59386.0,2.60303921]
[1723742637458,0.00907501,59387.0,59386.0,2.93981821]
[1723742638074,0.00907501,59387.0,59386.0,2.93971786]
[1723742638703,0.00907501,59387.0,59386.0,2.94271786]
[1723742638880,0.00907501,59387.0,59386.0,2.93971786]
[1723742639083,0.00907501,59387.0,59386.0,2.99269401]
[1723742639283,0.00090861,59390.0,59389.0,1.661829]
[1723742639487,0.00090861,59391.0,59390.0,0.540915]
[1723742639687,0.00090861,59391.0,59390.0,2.38939501]
[1723742639914,0.00090861,59391.0,59390.0,2.74915201]
[1723742640118,0.00090861,59391.0,59390.0,2.79419201]
[1723742640326,0.00090861,59391.0,59390.0,2.74121586]
[1723742640700,0.00090861,59391.0,59390.0,2.40445886]
[1723742640899,0.00090861,59391.0,59390.0,2.80445886]
[1723742641131,0.00090861,59391.0,59390.0,2.80439426]
[1723742641775,0.00090861,59391.0,59390.0,2.81839426]
[1723742641928,0.00090861,59391.0,59390.0,3.15515126]
[1723742642389,0.00907501,59401.0,59398.0,1.656299]
[1723742642627,0.00907501,59401.0,59398.0,2.49866726]
[1723742644175,0.00907501,59401.0,59398.0,2.85137826]
[1723742644176,0.0012,59399.0,59398.0,2.85137826]
[1723742644393,0.00927501,59419.0,59408.0,0.002]
[1723742644653,0.00927501,59419.0,59418.0,0.820597]
[1723742644851,0.00927501,59419.0,59418.0,1.56706607]
[1723742645063,0.00927501,59419.0,59418.0,1.516793]
[1723742645268,0.00927501,59419.0,59418.0,1.6922026]
[1723742645474,0.00927501,59419.0,59418.0,2.09034248]
[1723742645697,0.00927501,59419.0,59418.0,2.10522224]
[1723742645900,0.00927501,59419.0,59418.0,1.7321293]
[1723742646277,0.00927501,59419.0,59418.0,1.67078754]
[1723742646475,0.00927501,59419.0,59418.0,1.65678754]
[1723742646682,0.00927501,59419.0,59418.0,2.04586207]
[1723742646890,0.00927501,59419.0,59418.0,2.88291769]
[1723742647113,0.00927501,59419.0,59418.0,2.90803209]
[1723742647312,0.00927501,59419.0,59418.0,2.86875319]
[1723742647498,0.00927501,59419.0,59418.0,2.78246007]
[1723742647731,0.00927501,59419.0,59418.0,2.40938554]
[1723742647912,0.00927501,59419.0,59418.0,2.47353263]
[1723742648113,0.00927501,59419.0,59418.0,2.40938554]
[1723742648689,0.00927501,59419.0,59418.0,2.45953263]
[1723742648903,0.00927501,59419.0,59418.0,2.49860516]
[1723742649087,0.00927501,59419.0,59418.0,2.47346855]
[1723742649464,0.00907501,59432.0,59431.0,0.84131]
[1723742649676,0.00907501,59432.0,59431.0,1.07846454]
[1723742650067,0.00907501,59432.0,59431.0,1.43798854]
[1723742650301,0.00907501,59432.0,59431.0,1.88197067]
[1723742650521,0.00907501,59432.0,59431.0,1.88397067]
[1723742650679,0.00907501,59432.0,59431.0,1.96547067]
[1723742650880,0.00907501,59432.0,59431.0,2.36547067]
[1723742651307,0.00907501,59432.0,59431.0,2.41793998]
[1723742651585,0.02082911,59447.0,59446.0,0.168219]
[1723742651843,0.02082911,59447.0,59436.0,0.4787]
[1723742651844,0.0797,59446.0,59436.0,0.4787]
[1723742652040,0.02082911,59447.0,59437.0,0.17155454]
[1723742652041,0.0771,59440.0,59437.0,0.17155454]
[1723742652368,0.0771,59440.0,59438.0,0.16824]
[1723742652561,0.0771,59440.0,59437.0,0.17155454]
[1723742652800,0.0771,59440.0,59439.0,0.168239]
[1723742653076,0.0771,59440.0,59439.0,0.33979354]
[1723742653362,0.0771,59440.0,59439.0,0.67627254]
[1723742653568,0.0772,59443.0,59439.0,0.17155454]
[1723742653742,0.0772,59443.0,59442.0,0.504693]
[1723742653962,0.0772,59443.0,59442.0,0.67624754]
[1723742654174,0.09802911,59447.0,59446.0,0.168219]
[1723742654338,0.09802911,59447.0,59446.0,0.33977354]
[1723742654501,0.26624611,59447.0,59446.0,0.17155454]
[1723742654727,0.93911411,59447.0,59446.0,0.02267831]
[1723742654947,0.93911411,59447.0,59439.0,0.013]
[1723742654948,0.255336,59440.0,59439.0,0.013]
[1723742655155,0.67758627,59440.0,59439.0,0.013]
[1723742655378,1.35053227,59440.0,59439.0,0.013]
[1723742655585,1.68700527,59440.0,59439.0,0.013]
[1723742655789,1.35053227,59440.0,59439.0,0.413]
[1723742656000,1.35053227,59440.0,59439.0,0.4413]
[1723742656235,0.928282,59440.0,59439.0,0.4413]
[1723742656642,0.928282,59440.0,59439.0,0.4493]
[1723742656842,0.591809,59440.0,59439.0,0.4493]
[1723742657041,0.928282,59440.0,59439.0,0.408]
[1723742657268,0.928282,59440.0,59439.0,0.409]
[1723742657269,1.264755,59440.0,59439.0,0.409]
[1723742657724,1.264755,59440.0,59439.0,0.408]
[1723742658058,1.264755,59440.0,59439.0,0.4408]
[1723742658347,1.264755,59440.0,59439.0,0.4418]
[1723742658750,1.601228,59440.0,59439.0,0.4]
[1723742658958,1.264755,59440.0,59439.0,0.4]
[1723742659374,0.928282,59440.0,59439.0,0.4]
[1723742659988,0.928282,59440.0,59439.0,0.401]
[1723742660192,1.26566361,59440.0,59439.0,0.4411]
[1723742660417,0.92919061,59440.0,59439.0,0.4]
[1723742662054,1.26566361,59440.0,59439.0,0.4]
[1723742669397,1.28145866,59440.0,59439.0,0.4]
[1723742670884,1.27155866,59440.0,59439.0,0.4]
[1723742671086,1.27155866,59440.0,59439.0,0.44]
[1723742671291,1.27155866,59440.0,59439.0,0.4]
[1723742671840,1.25576361,59440.0,59439.0,0.4]
[1723742671988,1.2715605,59440.0,59439.0,0.4]
[1723742673891,1.28174145,59440.0,59439.0,0.4]
[1723742674092,1.28174145,59440.0,59439.0,0.400825]
[1723742675686,1.26594456,59440.0,59439.0,0.400825]
[1723742675850,1.28174794,59440.0,59439.0,0.400825]
[1723742676458,1.28174794,59440.0,59439.0,0.4409075]
[1723742677479,1.28174794,59440.0,59439.0,0.400825]
[1723742679167,1.27156699,59440.0,59439.0,0.400825]
[1723742679367,0.00090861,59440.0,59439.0,0.400825]
[1723742679566,0.16914461,59440.0,59439.0,0.400825]
[1723742679794,0.50561761,59440.0,59439.0,0.400825]
[1723742680002,0.84209061,59440.0,59439.0,0.400825]
[1723742680587,1.2766657,59440.0,59439.0,0.400825]
[1723742680785,1.27666524,59440.0,59439.0,0.400825]
[1723742682897,0.60371924,59440.0,59439.0,0.400825]
[1723742683111,0.85789224,59440.0,59439.0,0.400825]
[1723742683531,0.85789224,59440.0,59439.0,0.466225]
[1723742683737,0.85789224,59440.0,59439.0,0.5128475]
[1723742683738,0.85789531,59440.0,59439.0,0.5128475]
[1723742683982,0.85789531,59440.0,59439.0,0.4474475]
[1723742683983,0.52142231,59440.0,59439.0,0.4474475]
[1723742684187,0.18494931,59440.0,59439.0,0.4474475]
[1723742684777,0.52142231,59440.0,59439.0,0.4474475]
[1723742685406,0.18494931,59440.0,59439.0,0.4474475]
[1723742685610,0.52142231,59440.0,59439.0,0.400825]
[1723742685959,0.85789531,59440.0,59439.0,0.400825]
[1723742687728,1.27576774,59440.0,59439.0,0.400825]
[1723742692167,1.2757696,59440.0,59439.0,0.400825]
[1723742692931,1.25996361,59440.0,59439.0,0.400825]
[1723742693133,1.27577089,59440.0,59439.0,0.400825]
[1723742693508,1.27577089,59440.0,59439.0,0.4409075]
[1723742693713,0.85789789,59440.0,59439.0,0.4409075]
[1723742694103,0.85789789,59440.0,59439.0,0.400825]
[1723742695582,1.19437089,59440.0,59439.0,0.400825]
[1723742696045,1.17856361,59440.0,59439.0,0.400825]
[1723742696240,1.19436924,59440.0,59439.0,0.400825]
[1723742696869,2.11019678,59440.0,59439.0,0.400825]
[1723742697074,2.11019678,59440.0,59431.0,0.00745813]
[1723742697075,1.177816,59432.0,59431.0,0.00745813]
[1723742697311,1.177816,59432.0,59431.0,1.3e-07]
[1723742697312,2.48187244,59432.0,59431.0,1.3e-07]
[1723742697570,3.33241885,59432.0,59431.0,1.3e-07]
[1723742697836,3.41227701,59432.0,59431.0,1.3e-07]
[1723742698043,1.769065,59423.0,59422.0,0.4]
[1723742698425,1.769065,59423.0,59416.0,0.4]
[1723742698426,0.92931,59417.0,59416.0,0.4]
[1723742698721,2.67518644,59417.0,59416.0,0.4]
[1723742699061,2.58225544,59417.0,59416.0,0.4]
[1723742699268,1.592744,59412.0,59411.0,0.4]
[1723742699453,1.78010417,59412.0,59411.0,0.4]
[1723742699846,1.78010866,59412.0,59411.0,0.4]
[1723742700301,1.514893,59410.0,59409.0,0.4]
[1723742700500,1.53070316,59410.0,59409.0,0.4]
[1723742701193,1.95171224,59410.0,59409.0,0.4]
[1723742701396,0.504992,59407.0,59406.0,0.4]
[1723742701600,1.1168167,59407.0,59406.0,0.4]
[1723742701843,2.23829324,59407.0,59406.0,0.4]
[1723742702201,1.05997924,59407.0,59403.0,0.4]
[1723742702405,0.505015,59404.0,59403.0,0.4]
[1723742702608,1.52782354,59404.0,59403.0,0.4]
[1723742703004,2.05186192,59404.0,59403.0,0.4]
[1723742703205,2.0518598,59404.0,59403.0,0.4]
[1723742703414,0.505126,59391.0,59390.0,0.067126]
[1723742703612,0.336715,59398.0,59392.0,0.0663]
[1723742703814,0.001,59404.0,59395.0,0.0827]
[1723742703992,0.505084,59396.0,59395.0,0.0827]
[1723742704208,0.841807,59396.0,59395.0,0.0827]
[1723742704419,0.001,59404.0,59394.0,0.0663]
[1723742704420,0.505092,59395.0,59394.0,0.0663]
[1723742704714,1.178548,59395.0,59394.0,0.0663]
[1723742704886,0.84182,59395.0,59394.0,0.0663]
[1723742706382,1.178548,59395.0,59394.0,0.0663]
[1723742706598,0.841877,59391.0,59390.0,0.000826]
[1723742706917,1.178628,59391.0,59390.0,0.000826]
[1723742707322,1.178628,59391.0,59390.0,0.400826]
[1723742708146,2.20963354,59391.0,59390.0,0.400826]
[1723742708353,1.87963354,59391.0,59390.0,0.400826]
[1723742708569,2.34118808,59391.0,59390.0,0.400826]
[1723742708768,2.05118808,59391.0,59390.0,0.400826]
[1723742708971,1.87073354,59391.0,59390.0,0.400826]
[1723742709192,1.699179,59391.0,59390.0,0.400826]
[1723742709393,1.362428,59391.0,59390.0,0.400826]
[1723742709598,1.261428,59391.0,59390.0,0.400826]
[1723742709805,1.262428,59391.0,59390.0,0.400826]
[1723742710316,1.179628,59391.0,59390.0,0.400826]
[1723742710999,0.506126,59391.0,59390.0,0.400826]
[1723742711263,0.001,59391.0,59390.0,0.400826]
[1723742711725,0.841877,59391.0,59390.0,0.467026]
[1723742711932,0.505126,59391.0,59390.0,0.467026]
[1723742712137,0.842877,59391.0,59390.0,0.467026]
[1723742712341,0.842877,59391.0,59390.0,0.5137286]
[1723742712545,1.178628,59391.0,59390.0,0.5137286]
[1723742712947,0.841877,59391.0,59390.0,0.5197286]
[1723742713375,0.168373,59392.0,59390.0,0.5197286]
[1723742713573,0.505117,59392.0,59391.0,0.05197286]
[1723742713803,0.168375,59391.0,59390.0,0.473026]
[1723742714031,0.84375781,59391.0,59390.0,0.400826]
[1723742714232,1.51725981,59391.0,59390.0,0.000826]